fUSD/lending_fUSD_20250622
["ID","MTS","AMOUNT","RATE_DAILY","PERIOD"]
[366923509,1750573856194,-1165.59,0.00020275,2]
[366923510,1750573856203,-150.0,0.00020287,2]
[366923511,1750573856213,-150.148,0.00020308,2]
[366923512,1750573856223,-1000.0,0.00020321,2]
[366923513,1750573856234,-1000.0,0.00020321,2]
[366923514,1750573856244,-1000.0,0.00020321,2]
[366923515,1750573856254,-564.0,0.00020322,2]
[366923516,1750573856263,-244.82628641,0.00020356,2]
[366923517,1750573856273,-1953.7037685,0.00020423,2]
[366923518,1750573856282,-168.0,0.00020445,2]
[366923519,1750573856291,-152.59248807,0.000205,2]
[366923520,1750573856302,-1000.0,0.00020513,2]
[366923521,1750573856312,-300.0,0.00020546,2]
[366923522,1750573856321,-300.0,0.00020546,2]
[366923523,1750573856331,-1029.221732,0.00020547,2]
[366923524,1750573856340,-1029.221732,0.00020547,2]
[366923525,1750573856349,-274.38468914,0.00020547,2]
[366923526,1750573856359,-490.0,0.00020547,2]
[366923527,1750573856369,-494.94422706,0.00020547,2]
[366923528,1750573856380,-710.85,0.00020547,2]
[366923529,1750573856391,-490.0,0.00020547,2]
[366923530,1750573856400,-490.0,0.00020547,2]
[366923531,1750573856410,-490.0,0.00020547,2]
[366923532,1750573856419,-552.12,0.00020547,2]
[366923533,1750573856428,-490.0,0.00020547,2]
[366923534,1750573856437,-490.0,0.00020547,2]
[366923535,1750573856447,-490.0,0.00020547,2]
[366923536,1750573856456,-490.0,0.00020547,2]
[366923537,1750573856466,-201.54,0.00020547,2]
[366923538,1750573856476,-501.46728372,0.00020547,2]
[366923539,1750573856486,-590.52,0.00020547,2]
[366923540,1750573856497,-490.0,0.00020547,2]
[366923541,1750573856507,-823.24,0.00020547,2]
[366923542,1750573856516,-490.0,0.00020547,2]
[366923543,1750573856527,-531.21204793,0.00020547,2]
[366923544,1750573856536,-490.0,0.00020547,2]
[366923545,1750573856548,-154.27474327,0.00020547,2]
[366923546,1750573856557,-490.0,0.00020547,2]
[366923547,1750573856567,-907.07,0.00020547,2]
[366923548,1750573856576,-1230.93,0.00020547,2]
[366923549,1750573856585,-570.58,0.00020547,2]
[366923550,1750573856595,-652.68,0.00020547,2]
[366923551,1750573856604,-610.4,0.00020547,2]
[366923552,1750573856614,-490.0,0.00020547,2]
[366923553,1750573856624,-490.0,0.00020547,2]
[366923554,1750573856634,-490.0,0.00020547,2]
[366923555,1750573856643,-698.26,0.00020547,2]
[366923556,1750573856654,-669.17,0.00020547,2]
[366923557,1750573856663,-490.0,0.00020547,2]
[366923558,1750573856672,-490.0,0.00020547,2]
[366923559,1750573856681,-851.51,0.00020547,2]
[366923560,1750573856690,-490.0,0.00020547,2]
[366923561,1750573856699,-918.6,0.00020547,2]
[366923562,1750573856708,-490.0,0.00020547,2]
[366923563,1750573856719,-490.0,0.00020547,2]
[366923564,1750573856729,-490.0,0.00020547,2]
[366923565,1750573856739,-490.0,0.00020547,2]
[366923566,1750573856751,-490.0,0.00020547,2]
[366923567,1750573856761,-490.0,0.00020547,2]
[366923568,1750573856771,-1000.0,0.00020547,2]
[366923569,1750573856779,-881.74,0.00020547,2]
[366923570,1750573856788,-490.0,0.00020547,2]
[366923571,1750573856797,-490.0,0.00020547,2]
[366923572,1750573856807,-1148.58,0.00020547,2]
[366923573,1750573856816,-603.13674194,0.00020547,2]
[366923574,1750573856826,-214.30842759,0.00020547,2]
[366923575,1750573856834,-490.0,0.00020547,2]
[366923576,1750573856843,-586.95576922,0.00020547,2]
[366923577,1750573856853,-621.26790006,0.00020547,2]
[366923578,1750573856862,-490.0,0.00020547,2]
[366923579,1750573856875,-490.0,0.00020547,2]
[366923580,1750573856884,-490.0,0.00020547,2]
[366923581,1750573856894,-622.67986708,0.00020547,2]
[366923582,1750573856904,-494.8286241,0.00020547,2]
[366923583,1750573856916,-490.0,0.00020547,2]
[366923584,1750573856925,-490.0,0.00020547,2]
[366923585,1750573856934,-539.32,0.00020547,2]
[366923586,1750573856944,-365.93814469,0.00020547,2]
[366923587,1750573856955,-1119.38,0.00020547,2]
[366923588,1750573856966,-490.0,0.00020547,2]
[366923589,1750573856976,-680.02,0.00020547,2]
[366923590,1750573856986,-490.0,0.00020547,2]
[366923591,1750573856998,-490.0,0.00020547,2]
[366923592,1750573857007,-491.49,0.00020547,2]
[366923593,1750573857016,-490.0,0.00020547,2]
[366923594,1750573857026,-490.0,0.00020547,2]
[366923595,1750573857035,-280.0,0.00020547,2]
[366923596,1750573857045,-491.23599281,0.00020547,2]
[366923597,1750573857055,-698.45,0.00020547,2]
[366923598,1750573857065,-945.565872,0.00020547,2]
[366923599,1750573857074,-945.565862,0.00020547,2]
[366923600,1750573857084,-151.0,0.00020547,2]
[366923601,1750573857093,-151.0,0.00020547,2]
[366923602,1750573857103,-151.0,0.00020547,2]
[366923603,1750573857113,-151.0,0.00020547,2]
[366923604,1750573857122,-151.0,0.00020547,2]
[366923605,1750573857131,-151.0,0.00020547,2]
[366923606,1750573857140,-151.0,0.00020547,2]
[366923607,1750573857150,-151.0,0.00020547,2]
[366923608,1750573857160,-151.0,0.00020547,2]
[366923609,1750573857170,-154.753994,0.00020547,2]
[366923610,1750573857179,-154.753994,0.00020547,2]
[366923611,1750573857188,-160.917405,0.00020547,2]
[366923612,1750573857198,-160.917405,0.00020547,2]
[366923613,1750573857209,-151.0,0.00020547,2]
[366923614,1750573857218,-393.249528,0.00020547,2]
[366923615,1750573857227,-393.249528,0.00020547,2]
[366923616,1750573857238,-190.627065,0.00020547,2]
[366923617,1750573857247,-190.627065,0.00020547,2]
[366923618,1750573857257,-151.0,0.00020547,2]
[366923619,1750573857266,-151.0,0.00020547,2]
[366923620,1750573857275,-151.0,0.00020547,2]
[366923621,1750573857286,-151.0,0.00020547,2]
[366923622,1750573857296,-1500.0,0.00020568,2]
[366923623,1750573857307,-1002.39111331,0.00020568,2]
[366923624,1750573857317,-1500.0,0.00020568,2]
[366923625,1750573857328,-1500.0,0.00020568,2]
[366923626,1750573857338,-552.64482707,0.0002059,3]
[366923627,1750573857348,-1165.59,0.00020604,2]
[366923628,1750573857358,-2223.23,0.00020634,2]
[366923629,1750573857367,-244.82628641,0.00020676,2]
[366923630,1750573857376,-157.65,0.00020769,2]
[366923631,1750573857385,-1029.221732,0.00020778,2]
[366923632,1750573857394,-1029.221725,0.00020778,2]
[366923633,1750573857404,-1953.7037685,0.00020802,2]
[366923634,1750573857413,-553.0,0.0002082,2]
[366923635,1750573857423,-300.0,0.0002082,2]
[366923636,1750573857432,-151.0,0.00020821,2]
[366923637,1750573857441,-490.0,0.00020821,2]
[366923638,1750573857451,-710.85,0.00020821,2]
[366923639,1750573857460,-514.56748098,0.00020821,2]
[366923640,1750573857469,-361.06934439,0.00020821,2]
[366923641,1750573857479,-490.0,0.00020821,2]
[366923642,1750573857488,-552.12,0.00020821,2]
[366923643,1750573857498,-490.0,0.00020821,2]
[366923644,1750573857508,-490.0,0.00020821,2]
[366923645,1750573857517,-490.0,0.00020821,2]
[366923646,1750573857527,-498.91871979,0.00020821,2]
[366923647,1750573857537,-590.52,0.00020821,2]
[366923648,1750573857546,-490.0,0.00020821,2]
[366923649,1750573857556,-823.24,0.00020821,2]
[366923650,1750573857565,-490.0,0.00020821,2]
[366923651,1750573857575,-505.57354207,0.00020821,2]
[366923652,1750573857584,-490.0,0.00020821,2]
[366923653,1750573857593,-907.07,0.00020821,2]
[366923654,1750573857603,-1230.93,0.00020821,2]
[366923655,1750573857612,-570.58,0.00020821,2]
[366923656,1750573857621,-652.68,0.00020821,2]
[366923657,1750573857631,-610.4,0.00020821,2]
[366923658,1750573857640,-490.0,0.00020821,2]
[366923659,1750573857650,-484.65810246,0.00020821,2]
[366923660,1750573857659,-490.0,0.00020821,2]
[366923661,1750573857668,-669.17,0.00020821,2]
[366923662,1750573857678,-490.0,0.00020821,2]
[366923663,1750573857687,-490.0,0.00020821,2]
[366923664,1750573857696,-851.51,0.00020821,2]
[366923665,1750573857705,-490.0,0.00020821,2]
[366923666,1750573857715,-918.6,0.00020821,2]
[366923667,1750573857724,-282.00242144,0.00020821,2]
[366923668,1750573857733,-490.0,0.00020821,2]
[366923669,1750573857742,-490.0,0.00020821,2]
[366923670,1750573857751,-490.0,0.00020821,2]
[366923671,1750573857761,-490.0,0.00020821,2]
[366923672,1750573857771,-490.0,0.00020821,2]
[366923673,1750573857780,-1000.0,0.00020821,2]
[366923674,1750573857789,-881.74,0.00020821,2]
[366923675,1750573857798,-405.46531871,0.00020821,2]
[366923676,1750573857807,-490.0,0.00020821,2]
[366923677,1750573857817,-1148.58,0.00020821,2]
[366923678,1750573857826,-490.0,0.00020821,2]
[366923679,1750573857838,-490.0,0.00020821,2]
[366923680,1750573857848,-511.59848329,0.00020821,2]
[366923681,1750573857857,-490.0,0.00020821,2]
[366923682,1750573857867,-490.0,0.00020821,2]
[366923683,1750573857880,-521.77861884,0.00020821,2]
[366923684,1750573857889,-539.32,0.00020821,2]
[366923685,1750573857899,-1119.38,0.00020821,2]
[366923686,1750573857909,-217.54587155,0.00020821,2]
[366923687,1750573857918,-680.02,0.00020821,2]
[366923688,1750573857927,-490.0,0.00020821,2]
[366923689,1750573857937,-490.0,0.00020821,2]
[366923690,1750573857947,-491.49,0.00020821,2]
[366923691,1750573857957,-498.60650618,0.00020821,2]
[366923692,1750573857967,-490.0,0.00020821,2]
[366923693,1750573857979,-698.45,0.00020821,2]
[366923694,1750573857990,-151.0,0.00020821,2]
[366923695,1750573858001,-190.627065,0.00020821,2]
[366923696,1750573858010,-190.627065,0.00020821,2]
[366923697,1750573858020,-1095.54176085,0.00020868,2]
[366923698,1750573858031,-1500.0,0.00020868,2]
[366923699,1750573858040,-1500.0,0.00020868,2]
[366923700,1750573858052,-168.0,0.0002089,2]
[366923701,1750573858061,-168.0,0.0002092,2]
[366923702,1750573858071,-1165.59,0.00020933,2]
[366923703,1750573858080,-1165.59,0.00020933,2]
[366923704,1750573858089,-1165.59,0.00020933,2]
[366923705,1750573858098,-1165.59,0.00020933,2]
[366923706,1750573858107,-1165.59,0.00020933,2]
[366923707,1750573858117,-1165.77,0.00020933,2]
[366923708,1750573858126,-392.94,0.00020933,2]
[366923709,1750573858135,-22090.2,0.00020951,2]
[366923710,1750573858144,-19999.99,0.00020951,2]
[366923711,1750573858153,-26813.89,0.00020951,2]
[366923712,1750573858163,-203.0,0.00020966,6]
[366923713,1750573858172,-500.83582982,0.00020973,2]
[366923714,1750573858182,-500.0,0.00020973,2]
[366923715,1750573858191,-541.45082461,0.00020973,2]
[366923716,1750573858200,-500.74374198,0.00020973,2]
[366923717,1750573858209,-500.0,0.00020973,2]
[366923718,1750573858218,-500.0,0.00020973,2]
[366923719,1750573858228,-502.83672334,0.00020973,2]
[366923720,1750573858238,-559.69951743,0.00020973,2]
[366923721,1750573858249,-156.07488646,0.00020973,2]
[366923722,1750573858259,-502.52562412,0.00020973,2]
[366923723,1750573858268,-182.9,0.00020986,2]
[366923724,1750573858278,-8256.45446368,0.00020992,2]
[366923725,1750573858288,-2348618.82268063,0.00020992,3]
[366923726,1750573859639,-1314.8802207,0.00020992,3]
[366923727,1750573860062,-435.72406609,0.00020992,3]
[366923728,1750573861159,-290.901,0.00020147,2]
[366923729,1750573861168,-518.79304754,0.00020423,2]
[366923730,1750573861180,-3026.83795271,0.00020423,2]
[366923731,1750573861189,-766.25952276,0.00020895,2]
[366923732,1750573861199,-15220.10916555,0.00020992,3]
[366923733,1750573861416,-2692.85255664,0.00020992,3]
[366923734,1750573861432,-1211.68438394,0.00020992,3]
[366923735,1750573862684,-7979.29025336,0.00020992,3]
[366923736,1750573862730,-690.90135285,0.00020992,3]
[366923737,1750573893230,22.08,0.00026018,120]
[366923738,1750573893250,199.92,0.00026018,120]
[366923739,1750573893748,222.0,0.00026008,120]
[366923740,1750573894215,222.0,0.00025998,120]
[366923741,1750573894354,111.08,0.00026018,120]
[366923742,1750573991523,202.0,0.00016572,2]
[366923746,1750574040420,257.90562272,0.00024,120]
[366923747,1750574201493,202.0,0.00016572,2]
[366923748,1750574298162,154.15,0.00013699,2]
[366923751,1750574351418,203.0,0.00017309,2]
[366923756,1750574561397,202.0,0.00017309,2]
[366923757,1750574598461,400.3071737,0.00024657,120]
[366923769,1750575002003,2449.99999999,0.00024658,120]
[366923770,1750575027171,980.0,0.00024658,120]
[366923774,1750575031487,-168.0,0.00018273,2]
[366923775,1750575031497,-2155.41076843,0.00019079,2]
[366923776,1750575031520,-2654.27762367,0.00019079,2]
[366923777,1750575031529,-168.0,0.00019154,2]
[366923778,1750575031539,-651.3654,0.00019181,2]
[366923779,1750575031548,-1000.0,0.00019278,2]
[366923780,1750575031557,-207.7,0.00019303,2]
[366923781,1750575031567,-304.31,0.00019382,2]
[366923782,1750575031576,-1200.0,0.00019385,2]
[366923783,1750575031586,-1957.856,0.00019387,2]
[366923784,1750575031596,-207.4,0.00019387,2]
[366923785,1750575031605,-10857.51960944,0.00019398,2]
[366923786,1750575031626,-3276.41843961,0.00019398,2]
[366923787,1750575031837,-3141.6540965,0.00019398,2]
[366923788,1750575031906,-2118.22499618,0.00019398,2]
[366923789,1750575031918,-114.11285827,0.00019398,2]
[366923790,1750575031928,-151.08,0.00019399,2]
[366923791,1750575031938,-68.04890212,0.00019399,2]
[366923793,1750575037346,-367.69009788,0.00019399,2]
[366923794,1750575037356,-551.51752118,0.00019418,2]
[366923795,1750575037375,-2050.90247882,0.00019418,2]
[366923796,1750575037386,-666.0,0.0001942,2]
[366923797,1750575037395,-1472.56408502,0.00019442,2]
[366923798,1750575037408,-557.73258698,0.00019442,2]
[366923799,1750575037418,-2105.41764886,0.00019497,2]
[366923800,1750575037427,-1246.78145885,0.00019552,2]
[366923801,1750575037489,-936.53664302,0.00019552,2]
[366923802,1750575037498,-1000.0,0.000196,2]
[366923803,1750575037509,-826.65134575,0.00019607,2]
[366923804,1750575037518,-168.0,0.00019681,2]
[366923805,1750575037529,-151.0,0.00019726,2]
[366923806,1750575037538,-168.0,0.00019835,2]
[366923807,1750575037549,-534.22333296,0.000199,2]
[366923808,1750575037558,-168.0,0.00019928,2]
[366923809,1750575037568,-151.0,0.00020016,2]
[366923810,1750575037577,-668.65185757,0.00020016,2]
[366923811,1750575037587,-151.0,0.00020016,2]
[366923812,1750575037596,-151.0,0.00020016,2]
[366923813,1750575037605,-151.0,0.00020016,2]
[366923814,1750575037615,-151.0,0.00020016,2]
[366923815,1750575037625,-151.0,0.00020016,2]
[366923816,1750575037634,-300.0,0.00020016,2]
[366923817,1750575037644,-151.0,0.00020016,2]
[366923818,1750575037654,-300.0,0.00020016,2]
[366923819,1750575037664,-151.0,0.00020016,2]
[366923820,1750575037673,-500.0,0.00020016,2]
[366923821,1750575037683,-947.0,0.00020028,2]
[366923822,1750575037692,-3336.0,0.00020028,2]
[366923823,1750575037702,-199.97401749,0.00020028,2]
[366923824,1750575037714,-961.02598251,0.00020028,2]
[366923825,1750575037724,-81.80357402,0.00020028,2]
[366923826,1750575037763,-487.16144789,0.00020028,2]
[366923827,1750575037798,-67.88697809,0.00020028,2]
[366923828,1750575037808,-803.0,0.00020028,2]
[366923829,1750575037818,-238.5734869,0.00020028,2]
[366923843,1750575039841,-1766.4265131,0.00020028,2]
[366923846,1750575040154,-790.38285175,0.00020028,2]
[366923848,1750575041754,203.0,0.00017088,2]
[366923869,1750575042417,-203.0,0.00018954,4]
[366923871,1750575042427,-357.35177594,0.00020028,2]
[366923873,1750575042696,-130.26537231,0.00020028,2]
[366923874,1750575042707,-559.0,0.00020028,2]
[366923875,1750575042717,-158.63702479,0.00020028,2]
[366923878,1750575046029,-0.008536,0.00020028,2]
[366923879,1750575072049,202.0,0.00017088,2]
[366923885,1750575281636,202.0,0.00017088,2]
[366923887,1750575409826,162.21,0.00013699,2]
[366923898,1750575873815,-202.0,0.00018819,2]
[366923899,1750575934847,-1000.0,0.0001961,2]
[366923900,1750575934872,-152.15,0.00019684,2]
[366923901,1750575934898,-666.0,0.00019698,2]
[366923902,1750575934923,-861.125,0.00019719,2]
[366923903,1750575934948,-885.0,0.00019719,2]
[366923904,1750575934974,-4054.43,0.00019741,2]
[366923905,1750575935009,-516.41588847,0.000199,2]
[366923906,1750575935034,-2067.0,0.0002,3]
[366923907,1750575936010,988.526,0.00019719,2]
[366923908,1750575941329,1165.449,0.00019719,2]
[366923909,1750576014689,418.0,0.000196,2]
[366923911,1750576033982,270.50411153,0.0001983,2]
[366923960,1750576231672,-203.0,0.00019691,2]
[366923961,1750576231682,-99.79979123,0.0001973,2]
[366923962,1750576231801,-66.34020877,0.0001973,2]
[366923963,1750576231811,-289.399,0.00019827,2]
[366923964,1750576231820,-41.28599534,0.00019827,2]
[366923965,1750576237135,-4054.71400466,0.00019827,2]
[366923966,1750576237146,-1065.76399534,0.00019827,2]
[366923967,1750576237158,-1120.50933734,0.00019827,2]
[366923968,1750576237175,-4949.72666732,0.00019827,2]
[366923969,1750576237185,-350.0,0.00020008,2]
[366923970,1750576237196,-2030.29667202,0.00020016,2]
[366923972,1750576237206,-207.4,0.00020016,2]
[366923974,1750576237216,-300.0,0.00020027,2]
[366923976,1750576237226,-300.0,0.00020027,2]
[366923978,1750576237236,-1200.0,0.00020027,2]
[366923980,1750576237246,-250.0,0.00020028,2]
[366923982,1750576237256,-500.0,0.00020028,2]
[366923984,1750576237266,-10192.55379628,0.00020028,2]
[366923985,1750576237560,-557.23,0.00020028,2]
[366923986,1750576237594,-409.38422262,0.00020028,2]
[366923998,1750576238084,-10931.0319811,0.00020028,2]
[366924000,1750576238094,-6162.3697109,0.00020028,2]
[366924164,1750576239687,-510.59375583,0.00020028,2]
[366924166,1750576239699,-250.06054999,0.00020028,2]
[366924465,1750576487355,9995.0,0.00017,10]
[366924472,1750576739133,169.14,0.00013699,2]
[366924477,1750577164104,14084.90960137,8e-05,2]
[366924478,1750577172372,206.0,0.00016691,2]
[366924522,1750577432028,-168.0,0.00018141,2]
[366924523,1750577432038,-168.0,0.00018387,2]
[366924524,1750577432048,-636.1641325,0.00018445,2]
[366924525,1750577432060,-514.8358675,0.00018445,2]
[366924526,1750577432069,-1200.0,0.00018497,2]
[366924527,1750577432080,-1000.0,0.00018498,2]
[366924528,1750577432089,-2742.31,0.00018498,2]
[366924529,1750577432099,-665.29,0.00018547,2]
[366924530,1750577432110,-200.0,0.00018569,7]
[366924531,1750577432120,-168.0,0.00018591,2]
[366924532,1750577432130,-302.37,0.00018604,2]
[366924533,1750577432139,-21964.04925142,0.00018627,2]
[366924534,1750577432168,-312.33167225,0.00018627,2]
[366924535,1750577432311,-1499.49877404,0.00018627,2]
[366924580,1750577437844,-666.24,0.00018627,2]
[366924585,1750577437885,-488.59998769,0.00018627,2]
[366924586,1750577437897,-6859.74043173,0.00018627,2]
[366924590,1750577437926,-276.19279738,0.00018627,2]
[366924592,1750577437938,-1036.26708549,0.00018627,2]
[366924594,1750577437947,-206.0,0.0001866,4]
[366924596,1750577437957,-2706.1,0.00018672,2]
[366924598,1750577437966,-694.49,0.00018732,2]
[366924600,1750577437976,-196.87,0.00018736,2]
[366924602,1750577437985,-182.29,0.0001879,2]
[366924604,1750577437995,-2682.13,0.00018932,2]
[366924606,1750577438005,-448.0,0.00018995,2]
[366924608,1750577438015,-666.0,0.00019178,2]
[366924610,1750577438024,-409.0,0.00019243,2]
[366924612,1750577438034,-2906.98,0.00019244,2]
[366924614,1750577438043,-166.77,0.0001933,2]
[366924616,1750577438052,-7769.2,0.00019367,2]
[366924618,1750577438062,-18879.19,0.00019387,2]
[366924620,1750577438072,-250.0,0.00019397,2]
[366924622,1750577438082,-8899.27162354,0.000194,2]
[366924624,1750577438098,-1571.3874,0.00019475,2]
[366924626,1750577438109,-4548.1359,0.00019475,2]
[366924628,1750577438119,-3965.3566,0.00019475,2]
[366924630,1750577438128,-2019.9,0.00019519,2]
[366924632,1750577438138,-8423.15,0.00019532,2]
[366924634,1750577438148,-354.0,0.00019534,2]
[366924636,1750577438158,-151.0,0.00019564,2]
[366924638,1750577438168,-151.0,0.00019564,2]
[366924640,1750577438177,-1957.856,0.00019564,2]
[366924642,1750577438186,-153.94404556,0.00019564,2]
[366924644,1750577438195,-151.0,0.00019564,2]
[366924646,1750577438204,-151.0,0.00019564,2]
[366924648,1750577438214,-152.68890107,0.00019564,2]
[366924650,1750577438223,-198.0,0.00019564,2]
[366924652,1750577438232,-580.37669501,0.00019564,2]
[366924654,1750577438241,-151.0,0.00019564,2]
[366924656,1750577438251,-151.0,0.00019564,2]
[366924658,1750577438260,-151.0,0.00019564,2]
[366924659,1750577438270,-189.93054847,0.00019564,2]
[366924661,1750577438279,-151.0,0.00019564,2]
[366924663,1750577438288,-207.4,0.00019564,2]
[366924665,1750577438297,-448.0,0.00019575,2]
[366924667,1750577438306,-19999.99,0.00019575,2]
[366924669,1750577438315,-9999.99,0.00019575,2]
[366924671,1750577438324,-11794.33520086,0.00019575,2]
[366924673,1750577438337,-8096.53479914,0.00019575,2]
[366924675,1750577438353,-150.99,0.00019575,2]
[366924678,1750577438363,-275.88,0.00019575,2]
[366924679,1750577438372,-7206.99,0.00019575,2]
[366924682,1750577438382,-1831.44,0.00019575,2]
[366924683,1750577438391,-999.99,0.00019575,2]
[366924685,1750577438400,-9999.99,0.00019575,2]
[366924687,1750577438410,-3070.27,0.00019575,2]
[366924689,1750577438419,-150.99,0.00019575,2]
[366924691,1750577438428,-348.591,0.000196,2]
[366924694,1750577438437,-588.13165548,0.000196,2]
[366924696,1750577438447,-2030.296672,0.00019619,2]
[366924697,1750577438456,-302.29,0.00019624,2]
[366924700,1750577438466,-484.11188495,0.00019636,2]
[366924701,1750577438475,-5925.50398843,0.00019637,2]
[366924705,1750577438498,-5230.41802002,0.00019637,2]
[366924707,1750577438510,-1322.19799155,0.00019637,2]
[366924709,1750577438519,-2105.41764886,0.00019674,2]
[366924711,1750577438529,-588.13165523,0.00019693,2]
[366924713,1750577438539,-2183.31810187,0.00019729,2]
[366924715,1750577438552,-2382.16,0.00019761,2]
[366924717,1750577438563,-1142.04827953,0.00019784,2]
[366924721,1750577438592,-821.73330075,0.00019784,2]
[366924723,1750577438603,-300.31929136,0.00019784,2]
[366924725,1750577438612,-965.24033,0.0001983,2]
[366924727,1750577438623,-753.41490211,0.00019839,2]
[366924850,1750577440391,-1594.45770178,0.00019839,2]
[366924851,1750577440400,-150.0,0.00019839,2]
[366924852,1750577440410,-150.0,0.00019839,2]
[366924853,1750577440419,-57.07912636,0.0001984,2]
[366924870,1750577445047,-746.92087364,0.0001984,2]
[366924871,1750577445057,-638.0,0.0001984,2]
[366924872,1750577445067,-591.0,0.0001984,2]
[366924873,1750577445077,-559.0,0.0001984,2]
[366924874,1750577445087,-929.581,0.0001984,2]
[366924875,1750577445097,-1284.831,0.0001984,2]
[366924876,1750577445107,-2005.0,0.0001984,2]
[366924877,1750577445117,-1685.35,0.0001984,2]
[366924878,1750577445127,-1161.0,0.0001984,2]
[366924879,1750577445137,-947.0,0.0001984,2]
[366924880,1750577445147,-4096.0,0.0001984,2]
[366924881,1750577445157,-3336.0,0.0001984,2]
[366924882,1750577445167,-7136.0,0.0001984,2]
[366924883,1750577445177,-448.0,0.00019855,2]
[366924884,1750577445187,-2434.74389024,0.00019894,2]
[366924885,1750577445196,-268.41047553,0.00019904,2]
[366924886,1750577445207,-1529.9247,0.00019916,2]
[366924887,1750577445217,-317.59978032,0.0001992,2]
[366924888,1750577445227,-3026.46080117,0.0001994,2]
[366924889,1750577445237,-180.73481269,0.00019944,2]
[366924890,1750577445247,-2524.82941417,0.00019949,2]
[366924891,1750577445258,-1774.98813404,0.0002,2]
[366924892,1750577445268,-15831.34246892,0.0002,2]
[366924894,1750577445403,-383.30164025,0.0002,2]
[366924895,1750577445415,-649.83334176,0.0002,2]
[366924896,1750577445483,-99.4600245,0.0002,2]
[366924897,1750577446011,-463.28954317,0.0002,2]
[366924912,1750577863007,168.2,0.00013699,2]
[366924950,1750578611709,205.0,0.00016628,2]
[366924953,1750578632228,-205.0,0.00018436,4]
[366924954,1750578632237,-1000.0,0.0001901,2]
[366924955,1750578632247,-166.14,0.00019041,2]
[366924956,1750578632257,-250.0,0.0001914,2]
[366924957,1750578632266,-301.43,0.00019154,2]
[366924958,1750578632277,-167.37,0.00019619,2]
[366924959,1750578632286,-1144.373723,0.00019627,2]
[366924960,1750578632295,-1957.856,0.00019636,2]
[366924961,1750578632305,-207.4,0.00019636,2]
[366924962,1750578632314,-300.0,0.00019646,2]
[366924963,1750578632323,-300.0,0.00019646,2]
[366924964,1750578632334,-1200.0,0.00019646,2]
[366924965,1750578632343,-447.524,0.00019648,2]
[366924966,1750578632352,-3336.0,0.00019648,2]
[366924967,1750578632361,-803.0,0.00019648,2]
[366924968,1750578632370,-482.99,0.00019648,2]
[366924969,1750578632380,-2005.0,0.00019648,2]
[366924970,1750578632390,-591.0,0.00019648,2]
[366924971,1750578632399,-929.0,0.00019648,2]
[366924973,1750578632408,-1676.0,0.00019648,2]
[366924975,1750578632417,-7136.0,0.00019648,2]
[366924977,1750578632426,-885.0,0.00019648,2]
[366924979,1750578632435,-156.0,0.00019648,2]
[366924980,1750578632445,-410.87878036,0.00019691,2]
[366924982,1750578632454,-168.0,0.00019752,2]
[366924984,1750578632463,-278.873,0.000198,2]
[366924986,1750578632473,-1165.77,0.000199,2]
[366924988,1750578632483,-626.5938,0.000199,2]
[366924990,1750578632492,-1242.5165,0.000199,2]
[366924992,1750578632502,-1500.0,0.000199,2]
[366924994,1750578632511,-6872.67456466,0.000199,2]
[366924996,1750578632521,-999.99,0.00019929,2]